Workbook

Sheet 修正系数一览表
A1: 附件2
A2: 漳州市国有资本运营集团有限公司 2025年一线岗位公开招聘初面岗位修正系数一览表
A4: 序号 | B4: 岗位 | C4: 总分 | D4: 岗位平均分 | E4: 组别 | F4: 组总分 | G4: 人数 | H4: 组平均分 | I4: 修正系数
A5: 1 | B5: 资产巡查员 | C5: =SUM(F5:F7) -> 7065.42 | D5: =C5/100 -> 70.65 | E5: 1 | F5: 2365.90 | G5: 33 | H5: =F5/G5 -> 71.69 | I5: =ROUND($D$5/H5,4) -> 0.9855
E6: 2 | F6: 2310.00 | G6: 33 | H6: 70.00 | I6: =ROUND($D$5/H6,4) -> 1.0093
E7: 3 | F7: 2389.52 | G7: 34 | H7: 70.28 | I7: =ROUND($D$5/H7,4) -> 1.0053
A8: 2 | B8: 安全巡查员 | C8: =SUM(F8:F9) -> 2207.40 | D8: =C8/31 -> 71.21 | E8: 1 | F8: 1279.90 | G8: 18 | H8: 71.11 | I8: =ROUND(D8/H8,4) -> 1.0014
E9: 2 | F9: 927.50 | G9: 13 | H9: 71.35 | I9: =ROUND(D8/H9,4) -> 0.9980
A10: 3 | B10: 综治维稳员 | C10: =SUM(F10:F11) -> 2898.65 | D10: =C10/40 -> 72.47 | E10: 1 | F10: 1672.54 | G10: 23 | H10: 72.72 | I10: =ROUND(D10/H10,4) -> 0.9965
E11: 2 | F11: 1226.11 | G11: 17 | H11: 72.12 | I11: =ROUND(D10/H11,4) -> 1.0047
